bitfinex-derivatives/quotes_BNBF0:USTF0_20250221
["timestamp","ask_amount","ask_price","bid_price","bid_amount"]
[1740162616653,0.30869437,647.89,646.63,0.27235738]
[1740162616851,0.30869437,647.89,646.64,0.27235738]
[1740162617059,0.30869437,647.89,646.6,0.27235738]
[1740162617360,0.30869437,647.89,646.53,1.61345161]
[1740162617361,0.30869437,647.89,646.61,0.27235738]
[1740162617662,0.30869437,647.89,646.62,0.27235738]
[1740162617862,0.30869437,647.89,646.63,0.27235738]
[1740162618054,0.30869437,647.89,646.64,0.27235738]
[1740162618254,0.30869437,647.89,646.6,0.27235738]
[1740162618458,0.30869437,647.89,646.61,0.27235738]
[1740162618653,0.30869437,647.89,646.62,0.2721101]
[1740162618860,0.867,647.88,646.6,0.2721101]
[1740162619155,0.30870867,647.86,646.61,0.2721101]
[1740162619360,0.30870867,647.86,646.6,0.2721101]
[1740162619557,0.30870867,647.86,646.61,0.2721101]
[1740162619757,0.30870867,647.86,646.62,0.2721101]
[1740162619953,0.30870867,647.86,646.6,0.2721101]
[1740162620156,0.30870867,647.86,646.61,0.2721101]
[1740162620354,0.30870867,647.86,646.6,0.2721101]
[1740162620556,0.30870867,647.86,646.53,1.61345161]
[1740162620557,0.30870867,647.86,646.61,0.2721101]
[1740162620760,0.30870867,647.86,646.62,0.2721101]
[1740162620953,0.30870867,647.86,646.63,0.2721101]
[1740162621158,0.30870867,647.86,646.64,0.2721101]
[1740162621455,0.30870867,647.86,646.65,0.2721101]
[1740162621659,0.30870867,647.86,646.66,0.2721101]
[1740162621961,0.30870867,647.86,646.67,0.27218064]
[1740162622261,0.30870867,647.86,646.68,0.27218064]
[1740162622463,0.30870867,647.86,646.69,0.27218064]
[1740162622664,0.30870867,647.86,646.6,0.27218064]
[1740162622858,0.30870867,647.86,646.61,0.27218064]
[1740162623161,0.30870867,647.86,646.58,1.36113665]
[1740162623362,0.30870867,647.86,646.6,0.2720747]
[1740162626666,0.30870867,647.86,646.61,0.2720747]
[1740162626864,0.30870867,647.86,646.62,0.2720747]
[1740162627061,0.30870867,647.86,646.63,0.2720747]
[1740162627259,0.30870867,647.86,646.64,0.2720747]
[1740162627464,0.30870867,647.86,646.6,0.2720747]
[1740162627662,0.30870867,647.86,646.61,0.2720747]
[1740162627868,0.30870867,647.86,646.62,0.2720747]
[1740162628067,0.30870867,647.86,646.63,0.2720747]
[1740162628268,0.30870867,647.86,646.64,0.2716606]
[1740162628464,0.30870867,647.86,646.65,0.2716606]
[1740162628768,0.30870867,647.86,646.66,0.2716606]
[1740162628967,0.30870867,647.86,646.67,0.2716606]
[1740162629162,0.30870867,647.86,646.68,0.2716606]
[1740162629368,0.30870867,647.86,646.6,0.2716606]
[1740162629667,0.30870867,647.86,646.56,1.61350148]
[1740162629865,0.30870867,647.86,646.6,0.27185803]
[1740162631270,0.30870867,647.86,646.56,1.61350148]
[1740162631468,0.30870867,647.86,646.6,0.27168501]
[1740162632366,0.2838328,647.85,646.6,0.27168501]
[1740162632564,0.30872296,647.83,646.6,0.27168501]
[1740162632767,0.2838328,647.82,646.6,0.27168501]
[1740162632970,0.30873726,647.8,646.61,0.27184702]
[1740162633268,0.28384835,647.79,646.6,0.27184702]
[1740162633471,0.28384835,647.79,646.61,0.27184702]
[1740162633765,0.30873726,647.8,646.62,0.27184702]
[1740162633970,0.28386979,647.79,646.6,0.27184702]
[1740162634171,0.30873726,647.8,646.61,0.27184702]
[1740162634371,0.30873726,647.8,646.56,1.61350148]
[1740162634575,0.28386895,647.79,646.57,0.27186374]
[1740162634967,0.30875156,647.77,646.57,0.27186374]
[1740162637772,0.30875156,647.77,646.58,0.27186374]
[1740162637970,0.30875156,647.77,646.59,0.27186374]
[1740162638171,0.30875156,647.77,646.56,1.61350148]
[1740162638172,0.30875156,647.77,646.6,0.27186374]
[1740162638375,0.30875156,647.77,646.61,0.27186374]
[1740162638668,0.30875156,647.77,646.62,0.27186374]
[1740162638870,0.30875156,647.77,646.63,0.27186374]
[1740162639070,0.30875156,647.77,646.64,0.27186374]
[1740162639275,0.30875156,647.77,646.8,1.36113665]
[1740162639473,0.30875156,647.77,646.81,0.27186374]
[1740162641675,0.30875156,647.77,646.82,0.27186374]
[1740162641869,0.30875156,647.77,646.72,0.27186374]
[1740162642076,0.30875156,647.77,646.73,0.27186374]
[1740162642277,0.30875156,647.77,646.74,0.27167019]
[1740162642577,0.30875156,647.77,646.75,0.27167019]
[1740162642771,0.30875156,647.77,646.76,0.27167019]
[1740162643078,0.30875156,647.77,646.77,0.27167019]
[1740162643276,0.30875156,647.77,646.78,0.27167019]
[1740162643571,0.30875156,647.77,646.71,1.36113665]
[1740162643572,0.30875156,647.77,646.72,0.27167019]
[1740162644271,0.30875156,647.77,646.73,0.27167019]
[1740162644470,0.30875156,647.77,646.66,0.27167019]
[1740162644675,0.30875156,647.77,646.67,0.27167019]
[1740162644875,0.30875156,647.77,646.68,0.27167019]
[1740162645075,0.30875156,647.77,646.66,0.27167019]
[1740162645376,0.30875156,647.77,646.67,0.27167019]
[1740162645673,0.30875156,647.77,646.68,0.27167019]
[1740162645877,0.30875156,647.77,646.69,0.27167019]
[1740162646077,0.30875156,647.77,646.48,0.27167019]
[1740162646277,0.30875156,647.77,646.7,0.27167019]
[1740162646576,0.30875156,647.77,646.71,0.27167019]
[1740162646775,0.30875156,647.77,646.5,0.27167019]
[1740162646975,0.30875156,647.77,646.72,0.27167019]
[1740162647173,0.30875156,647.77,646.73,0.27167019]
[1740162647373,0.30875156,647.77,646.5,0.27167019]
[1740162647571,0.30875156,647.77,646.51,0.27167019]
[1740162647776,0.30875156,647.77,646.52,0.27167019]
[1740162647978,0.30875156,647.77,646.5,0.27167019]
[1740162648177,0.30875156,647.77,646.51,0.27167019]
[1740162648377,0.30875156,647.77,646.5,0.27167019]
[1740162648580,0.30875156,647.77,646.51,0.27166885]
[1740162648776,0.30875156,647.77,646.5,0.27166885]
[1740162648974,0.30875156,647.77,646.51,0.27166885]
[1740162649280,0.30875156,647.77,646.52,0.27166885]
[1740162649474,0.30875156,647.77,646.5,0.27166885]
[1740162649674,0.30875156,647.77,646.51,0.27166885]
[1740162649879,0.30875156,647.77,646.52,0.27166885]
[1740162650081,0.30875156,647.77,646.5,0.27166885]
[1740162650380,0.30875156,647.77,646.51,0.27166885]
[1740162650579,0.30875156,647.77,646.52,0.27166885]
[1740162650772,0.30875156,647.77,646.53,0.27166885]
[1740162650974,0.30875156,647.77,646.54,0.27166885]
[1740162651277,0.30875156,647.77,646.55,0.27166885]
[1740162651476,0.30875156,647.77,646.5,0.27166885]
[1740162651680,0.30875156,647.77,646.49,1.61377583]
[1740162651884,0.30875156,647.77,646.5,0.27176752]
[1740162652180,1.039,647.76,646.5,0.27176752]
[1740162654281,0.30876586,647.74,646.5,0.27176752]
[1740162654882,0.30876586,647.74,646.51,0.27161335]
[1740162655081,0.30876586,647.74,646.5,0.27161335]
[1740162655282,0.30876586,647.74,646.51,0.27161335]
[1740162655479,0.30876586,647.74,646.52,0.27161335]
[1740162655681,0.30876586,647.74,646.5,0.27161335]
[1740162655876,0.30876586,647.74,646.53,0.27161335]
[1740162656084,0.30876586,647.74,646.54,0.27161335]
[1740162656383,0.30876586,647.74,646.49,1.61377583]
[1740162656584,0.30876586,647.74,646.5,0.2716977]
[1740162659781,0.30876586,647.74,646.51,0.27166079]
[1740162659987,0.30876586,647.74,646.5,0.27166079]
[1740162660384,0.28391381,647.73,646.5,0.27166079]
[1740162660586,0.28391381,647.73,646.2,0.27166079]
[1740162660787,0.30878016,647.71,646.21,0.27166079]
[1740162660982,0.30878016,647.71,646.22,0.27177301]
[1740162661186,0.30878016,647.71,646.2,0.27177301]
[1740162661387,0.30878016,647.71,646.31,1.36113665]
[1740162661587,0.30878016,647.71,646.32,0.27177301]
[1740162662282,0.30878016,647.71,646.33,0.27176029]
[1740162662487,0.30878016,647.71,646.32,0.27176029]
[1740162662788,0.30878016,647.71,646.33,0.27176029]
[1740162662988,0.30878016,647.71,646.34,0.27176029]
[1740162663187,0.30878016,647.71,646.32,0.27176029]
[1740162663380,1.23273398,647.7,646.33,0.27176029]
[1740162663583,1.51670137,647.69,646.34,0.27176029]
[1740162663789,1.23273398,647.68,646.23,1.36113665]
[1740162663987,1.23273398,647.67,646.24,0.27191102]
[1740162664183,1.23273398,647.66,646.24,0.27191102]
[1740162664390,1.51671844,647.65,646.24,0.27191102]
[1740162664588,1.51671844,647.64,646.24,0.27191102]
[1740162664787,1.51671844,647.63,646.24,0.27191102]
[1740162664986,1.51672307,647.62,646.25,1.008]
[1740162665187,0.93844443,647.63,646.26,0.27191102]
[1740162666089,0.30878016,647.71,646.26,0.27191102]
[1740162666286,1.23263329,647.7,646.27,0.27190013]
[1740162666487,1.23263329,647.69,646.28,0.27190013]
[1740162666688,1.23263329,647.68,646.29,0.27190013]
[1740162666989,1.23263329,647.67,646.3,0.27187275]
[1740162667184,1.23263329,647.66,646.26,0.27187275]
[1740162667389,1.23263329,647.65,646.27,0.27187275]
[1740162667589,1.23263329,647.64,646.26,0.27187275]
[1740162667891,0.3088183,647.63,646.27,0.27187275]
[1740162668090,0.28397005,647.62,646.26,0.27187275]
[1740162668290,0.28397005,647.62,646.27,0.27187275]
[1740162668591,0.28397005,647.62,646.28,0.27187275]
[1740162668791,0.28397005,647.62,646.25,1.008]
[1740162668792,0.30883261,647.6,646.29,0.27187275]
[1740162668989,0.28397005,647.59,646.26,0.27187275]
[1740162669190,0.30883261,647.6,646.27,0.27187275]
[1740162669584,0.30883261,647.6,646.28,0.27187275]
[1740162669786,0.30883261,647.6,646.29,0.27187275]
[1740162669989,0.30883261,647.6,646.3,0.27187275]
[1740162670187,0.30883261,647.6,646.28,0.27187275]
[1740162670389,0.30883261,647.6,646.29,0.27187275]
[1740162670589,0.30883261,647.6,646.28,0.27187275]
[1740162670891,0.30883261,647.6,646.29,0.27187275]
[1740162671086,0.30883261,647.6,646.28,0.27187275]
[1740162671286,0.30883261,647.6,646.29,0.27187275]
[1740162671486,0.30883261,647.6,646.28,0.27187275]
[1740162671690,0.30883261,647.6,646.29,0.27187275]
[1740162671992,0.30883261,647.6,646.3,0.27187275]
[1740162672187,0.30883261,647.6,646.26,0.27187275]
[1740162672389,0.30883261,647.6,646.27,0.27187275]
[1740162672586,0.30883261,647.6,646.28,0.27187275]
[1740162672789,0.30883261,647.6,646.25,1.008]
[1740162672790,0.30883261,647.6,646.26,0.27187275]
[1740162673391,0.30883261,647.6,646.25,1.008]
[1740162673692,0.30883261,647.6,646.26,0.27203308]
[1740162676389,0.30883261,647.6,646.25,1.008]
[1740162676589,0.30883261,647.6,646.26,0.27199039]
[1740162677990,0.30883261,647.6,646.25,1.008]
[1740162678193,0.30883261,647.6,646.26,0.27219944]
[1740162680095,0.28397798,647.59,646.26,0.27219944]
[1740162680300,0.30884692,647.57,646.26,0.27219944]
[1740162681291,0.30884692,647.57,646.27,0.27250638]
[1740162681594,0.30884692,647.57,646.28,0.27250638]
[1740162681896,0.30884692,647.57,646.29,0.27250638]
[1740162682096,0.30884692,647.57,646.3,0.27250638]
[1740162682295,0.30884692,647.57,646.31,0.27250638]
[1740162682495,0.30884692,647.57,646.32,0.27250638]
[1740162682797,0.30884692,647.57,646.33,0.27250638]
[1740162682996,0.30884692,647.57,646.28,0.27250638]
[1740162683198,0.30884692,647.57,646.29,0.27250638]
[1740162683390,0.30884692,647.57,646.3,0.27249218]
[1740162683592,0.30884692,647.57,646.31,0.27249218]
[1740162683892,0.30884692,647.57,646.41,1.36113665]
[1740162684097,0.30884692,647.57,646.42,0.27249218]
[1740162686498,0.30884692,647.57,646.28,0.27249218]
[1740162686699,0.30884692,647.57,646.29,0.27249218]
[1740162686900,0.30884692,647.57,646.3,0.27249218]
[1740162687097,0.30884692,647.57,646.31,0.27249218]
[1740162687297,0.30884692,647.57,646.32,0.27249218]
[1740162687695,0.30884692,647.57,646.33,0.27249218]
[1740162687903,0.30884692,647.57,646.34,0.27249218]
[1740162688199,0.30884692,647.57,646.35,0.27249218]
[1740162688400,0.30884692,647.57,646.36,0.27249218]
[1740162688600,0.30884692,647.57,646.37,0.27249218]
[1740162688793,0.30884692,647.57,646.38,0.58190769]
[1740162688997,0.30884692,647.57,646.39,0.27249218]
[1740162689194,0.30884692,647.57,646.4,0.27249218]
[1740162689398,0.30884692,647.57,646.41,0.27249218]
[1740162689598,0.30884692,647.57,646.42,0.27249218]
[1740162689901,0.30884692,647.57,646.43,0.27249218]
[1740162690099,0.30884692,647.57,646.44,0.27249218]
[1740162690301,0.30884692,647.57,646.45,0.27249218]
[1740162690595,0.30884692,647.57,646.69,1.36113665]
[1740162690799,0.30884692,647.57,646.7,0.27249218]
[1740162692700,0.30884692,647.57,646.53,0.27249218]
[1740162692898,0.30884692,647.57,646.54,0.27249218]
[1740162693099,0.30884692,647.57,646.55,0.27249218]
[1740162693299,0.30884692,647.57,646.53,0.27249218]
[1740162693501,0.30884692,647.57,646.54,0.27249218]
[1740162693698,0.30884692,647.57,646.55,0.27249218]
[1740162693902,0.30884692,647.57,646.53,0.27249218]
[1740162695904,0.30884692,647.57,646.54,0.27249218]
[1740162696201,0.30884692,647.57,646.55,0.27249218]
[1740162696395,0.30884692,647.57,646.45,0.27249218]
[1740162696598,0.30884692,647.57,646.46,0.27249218]
[1740162696796,0.30884692,647.57,646.45,0.27249218]
[1740162696993,0.30884692,647.57,646.46,0.27249218]
[1740162697195,0.30884692,647.57,646.47,0.27249218]
[1740162697405,0.30884692,647.57,646.48,0.27249218]
[1740162697596,0.30884692,647.57,646.45,0.27249218]
[1740162697800,0.30884692,647.57,646.46,0.27249218]
[1740162697996,0.30884692,647.57,646.45,0.27249218]
[1740162698203,0.30884692,647.57,646.46,0.27249218]
[1740162698704,0.30884692,647.57,646.44,1.61302783]
[1740162698902,0.30884692,647.57,646.45,0.272211]
[1740162701902,0.30884692,647.57,646.44,1.61302783]
[1740162702203,0.30884692,647.57,646.45,0.27217538]
[1740162703907,0.30884692,647.57,646.46,0.27217538]
[1740162704107,0.30884692,647.57,646.47,0.27217538]
[1740162704304,0.30884692,647.57,646.48,0.27217538]
[1740162704504,0.30884692,647.57,646.05,0.27217538]
[1740162704707,0.30884692,647.57,646.06,0.27217538]
[1740162704906,0.30884692,647.57,646.07,0.27217538]
[1740162705109,0.30884692,647.57,645.96,0.27217538]
[1740162705306,0.30884692,647.57,645.97,0.27217538]
[1740162705502,0.30884692,647.57,645.95,1.36113665]
[1740162705503,0.30884692,647.57,645.96,0.27217538]
[1740162705701,0.30884692,647.57,645.97,0.27217538]
[1740162706006,0.30884692,647.57,645.98,0.27217538]
[1740162706207,1.23010251,647.56,645.96,0.27217538]
[1740162706508,0.30884692,647.57,645.97,0.27277417]
[1740162706705,1.22985746,647.56,645.98,0.27277417]
[1740162707007,1.53009687,648.06,645.75,1.36113665]
[1740162707008,0.30886122,647.54,645.99,0.27277417]
[1740162707211,0.30886122,647.54,646.0,0.27277417]
[1740162707405,1.2299121,647.53,645.75,1.36113665]
[1740162707605,1.2299121,647.52,645.75,1.36113665]
[1740162707908,0.3088803,647.5,645.76,0.27294775]
[1740162708107,3.50691306,647.5,645.76,0.27294775]
[1740162708307,3.19803276,647.49,645.76,0.27294775]
[1740162708606,0.30889462,647.47,645.77,1.018]
[1740162708902,3.50692738,647.47,645.77,1.018]
[1740162709103,3.19803276,647.46,645.78,0.27322411]
[1740162709302,3.19803276,647.45,645.78,0.27322411]
[1740162709501,0.3089137,647.43,645.78,0.27322411]
[1740162709709,0.28416106,647.42,645.78,0.27322411]
[1740162709907,4.41703276,647.42,645.78,0.27322411]
[1740162710208,0.30892801,647.4,645.78,0.27322411]
[1740162710508,0.28415885,647.39,645.78,0.27322411]
[1740162710704,0.30894233,647.37,645.78,0.27322411]
[1740162710909,1.2300126,647.36,645.78,0.27322411]
[1740162711111,0.30895665,647.34,645.78,0.27322411]
[1740162711311,0.28416049,647.33,645.78,0.27322411]
[1740162711506,0.30897097,647.31,645.78,0.27322411]
[1740162711711,1.51417309,647.3,645.78,0.27322411]
[1740162711911,3.48219325,647.29,645.78,0.27322411]
[1740162712107,0.30899006,647.27,645.78,0.27322411]
[1740162712311,0.28416049,647.26,645.78,0.27322411]
[1740162712513,0.30900438,647.24,645.78,0.27322411]
[1740162712714,1.51417309,647.23,645.78,0.27322411]
[1740162712913,3.48219325,647.22,645.78,0.27322411]
[1740162713114,0.30902348,647.2,645.78,0.27322411]
[1740162713414,0.28416049,647.19,645.78,0.27322411]
[1740162713615,4.41130863,647.19,645.78,0.27322411]
[1740162713815,3.47517303,647.18,645.78,0.27322411]
[1740162714008,3.47519456,647.17,645.78,0.27322411]
[1740162714310,3.47519456,647.16,645.78,0.27322411]
[1740162714511,3.47519456,647.15,645.78,0.27322411]
[1740162714720,4.41133016,647.14,645.78,0.27322411]
[1740162715012,3.47519456,647.13,645.78,0.27322411]
[1740162715218,3.47519456,647.12,645.78,0.27322411]
[1740162715413,3.47519456,647.11,645.78,0.27322411]
[1740162715612,3.47519456,647.1,645.78,0.27322411]
[1740162715814,1.51417309,647.09,645.78,0.27322411]
[1740162716014,1.51417309,647.08,645.78,0.27322411]
[1740162716219,1.51417309,647.07,645.78,0.27322411]
[1740162716517,0.28416049,647.06,645.78,0.27322411]
[1740162716723,0.2842009,647.07,645.78,0.27322411]
[1740162716923,0.2842009,647.06,645.78,0.27322411]
[1740162717123,0.59329602,647.05,645.78,0.27322411]
[1740162717320,0.30910467,647.03,645.78,0.27322411]
[1740162717726,0.28420622,647.02,645.78,0.27322411]
[1740162718023,0.30910467,647.03,645.78,0.27322411]
[1740162722421,0.30910467,647.03,645.79,0.27322411]
[1740162722627,0.30910467,647.03,645.8,0.27322411]
[1740162722828,0.30910467,647.03,645.78,0.27322411]
[1740162723123,0.30910467,647.03,645.79,0.27322411]
[1740162723320,0.30910467,647.03,645.8,0.27322411]
[1740162723521,0.30910467,647.03,645.81,0.27322411]
[1740162723827,0.30910467,647.03,645.82,0.27322411]
[1740162724027,0.30910467,647.03,645.83,0.27273874]
[1740162724327,0.30910467,647.03,645.84,0.27273874]
[1740162724624,0.30910467,647.03,645.85,0.27273874]
[1740162724828,0.30910467,647.03,645.86,0.27273874]
[1740162725028,0.30910467,647.03,645.87,0.27273874]
[1740162725222,0.30910467,647.03,645.78,0.27273874]
[1740162725428,0.30910467,647.03,645.79,0.27273874]
[1740162725728,0.30910467,647.03,645.8,0.27273874]
[1740162725923,0.30910467,647.03,645.78,0.27273874]
[1740162726124,0.30910467,647.03,645.79,0.27273874]
[1740162726327,0.30910467,647.03,645.78,0.27273874]
[1740162726528,0.30910467,647.03,645.79,0.27273874]
[1740162726828,0.30910467,647.03,645.8,0.27273874]
[1740162727029,0.2842017,647.02,645.78,0.27273874]
[1740162727229,0.28421221,647.01,645.79,0.27244208]
[1740162727431,0.28421221,647.0,645.8,0.27244208]
[1740162727727,1.22069287,646.99,645.78,0.27244208]
[1740162727927,0.28421221,646.98,645.79,0.27244208]
[1740162728124,0.28421221,647.02,645.78,0.27244208]
[1740162728431,0.30910467,647.03,645.79,0.27244208]
[1740162728432,0.28422179,647.01,645.79,0.27244208]
[1740162728632,0.28422179,647.02,645.78,0.27244208]
[1740162728825,0.28422179,647.01,645.79,0.27244208]
[1740162729031,1.50445269,647.0,645.8,0.27244208]
[1740162729227,1.50445269,646.99,645.81,0.27244208]
[1740162729430,1.50445269,646.98,645.82,0.27244208]
[1740162729628,0.30913812,646.96,645.83,0.27244208]
[1740162729831,0.28422179,646.95,645.78,0.27244208]
[1740162730031,0.30915245,646.93,645.79,0.27244208]
[1740162730232,0.30915245,646.93,645.78,0.27244208]
[1740162730530,0.30915245,646.93,645.79,0.27271121]
[1740162730731,0.28424675,646.92,645.78,0.27271121]
[1740162730926,0.28424675,646.92,645.79,0.27271121]
[1740162731126,0.28424675,646.92,645.78,0.27271121]
[1740162731332,0.28424675,646.92,645.79,0.27271121]
[1740162731625,0.28424675,646.92,645.8,0.27271121]
[1740162731831,0.30916679,646.9,645.78,0.27271121]
[1740162732029,0.28424675,646.89,645.79,0.27271121]
[1740162732229,0.28424675,646.89,645.8,0.27271121]
[1740162732531,0.28424675,646.89,645.81,0.27271121]
[1740162732730,0.30916679,646.9,645.78,0.27271121]
[1740162732932,0.30916679,646.9,645.79,0.27271121]
[1740162733226,0.30916679,646.9,645.8,0.27271121]
[1740162733433,0.30916679,646.9,645.78,0.27271121]
[1740162733732,0.30916679,646.9,645.79,0.27237978]
[1740162734036,0.30916679,646.9,645.8,0.27237978]
[1740162734330,0.30916679,646.9,645.81,0.27237978]
[1740162734526,0.30916679,646.9,645.78,0.27237978]
[1740162734731,0.30916679,646.9,645.79,0.27237978]
[1740162735033,0.30916679,646.9,645.8,0.27237978]
[1740162735234,0.30916679,646.9,645.77,1.018]
[1740162735235,0.30916679,646.9,645.78,0.27237978]
[1740162735427,0.30916679,646.9,645.79,0.27237978]
[1740162735631,0.30916679,646.9,645.8,0.27237978]
[1740162735830,0.30916679,646.9,645.81,0.27237978]
[1740162736030,0.30916679,646.9,645.82,0.27237978]
[1740162736231,0.30916679,646.9,645.83,0.27237978]
[1740162736534,0.28424135,646.89,645.84,0.27237978]
[1740162736736,0.28424135,646.89,645.78,0.27237978]
[1740162736930,0.28424135,646.89,645.79,0.27237978]
[1740162737133,0.28424135,646.89,645.78,0.27237978]
[1740162737335,0.30918113,646.87,645.79,0.27237978]
[1740162737530,0.28424135,646.86,645.8,0.27237978]
[1740162737839,0.28424135,646.86,645.81,0.27237978]
[1740162738037,0.28424135,646.86,645.78,0.27237978]
[1740162738335,0.28424135,646.86,645.77,1.018]
[1740162738336,0.28424135,646.86,645.79,0.27237978]
[1740162738635,0.28424135,646.86,645.8,0.27237978]
[1740162738829,0.28424135,646.86,645.78,0.27237978]
[1740162739738,0.30919547,646.84,645.78,0.27237978]
[1740162743641,0.30919547,646.84,645.79,0.27269399]
[1740162743838,0.30919547,646.84,645.8,0.27269399]
[1740162744038,0.30919547,646.84,645.78,0.27269399]
[1740162744240,0.30919547,646.84,645.79,0.27269399]
[1740162744439,0.30919547,646.84,645.78,0.27269399]
[1740162745043,0.30919547,646.84,645.79,0.27253863]
[1740162745238,0.30919547,646.84,645.78,0.27253863]
[1740162745444,0.30919547,646.84,645.79,0.27253863]
[1740162745641,0.30919547,646.84,645.77,1.018]
[1740162745642,0.30919547,646.84,645.8,0.27253863]
[1740162745844,0.30919547,646.84,645.78,0.27253863]
[1740162746139,0.30919547,646.84,645.79,0.27253863]
[1740162746344,0.30919547,646.84,645.78,0.27253863]
[1740162746540,0.30919547,646.84,645.8,0.27253863]
[1740162746739,0.30919547,646.84,645.81,0.27253863]
[1740162746936,0.30919547,646.84,645.78,0.27253863]
[1740162749644,0.30919547,646.84,645.77,1.018]
[1740162749939,0.30919547,646.84,645.78,0.27226546]
[1740162751241,0.30919547,646.84,645.79,0.27210677]
[1740162751443,0.30919547,646.84,645.8,0.27210677]
[1740162751639,0.30919547,646.84,645.81,0.27210677]
[1740162751837,0.30919547,646.84,645.82,0.27210677]
[1740162752042,0.30919547,646.84,645.83,0.27210677]
[1740162752238,0.30919547,646.84,645.84,0.27210677]
[1740162752539,0.30919547,646.84,645.85,0.27210677]
[1740162752739,0.30919547,646.84,645.78,0.27210677]
[1740162752939,0.30919547,646.84,645.79,0.27210677]
[1740162753147,0.30919547,646.84,645.8,0.27210677]
[1740162753445,0.30919547,646.84,645.81,0.27210677]
[1740162753646,0.30919547,646.84,645.82,0.27210677]
[1740162753846,0.30919547,646.84,645.83,0.27210677]
[1740162754046,0.30919547,646.84,645.84,0.27210677]
[1740162754346,0.30919547,646.84,645.85,0.27210677]
[1740162754542,0.30919547,646.84,645.86,0.27210677]
[1740162754846,0.30919547,646.84,645.87,0.27210677]
[1740162755039,0.30919547,646.84,645.86,0.27210677]
[1740162755241,0.30919547,646.84,645.87,0.27210677]
[1740162755443,0.30919547,646.84,645.86,0.27210677]
[1740162755644,0.30919547,646.84,645.87,0.27210677]
[1740162755839,0.30919547,646.84,645.88,0.27214608]
[1740162756147,0.30919547,646.84,645.89,0.27220574]
[1740162756346,0.30919547,646.84,645.9,0.27220574]
[1740162756548,0.30919547,646.84,645.85,1.61518022]
[1740162756549,0.30919547,646.84,645.91,0.27220574]
[1740162756740,0.30919547,646.84,645.92,0.27220574]
[1740162756945,0.30919547,646.84,645.93,0.27220574]
[1740162757147,0.30919547,646.84,645.86,0.27220574]
[1740162757445,0.30919547,646.84,645.87,0.27220574]
[1740162757646,0.30919547,646.84,645.86,0.27220574]
[1740162757844,0.30919547,646.84,645.87,0.27220574]
[1740162758040,0.30919547,646.84,645.85,1.61518022]
[1740162758041,0.30919547,646.84,645.88,0.27220574]
[1740162758241,0.30919547,646.84,645.86,0.27220574]
[1740162758440,0.30919547,646.84,645.87,0.27220574]
[1740162758646,0.30919547,646.84,645.88,0.27220574]
[1740162758841,0.30919547,646.84,645.86,0.27220574]
[1740162759048,0.30919547,646.84,645.87,0.27220574]
[1740162759247,0.30919547,646.84,645.88,0.27220574]
[1740162759449,0.30919547,646.84,645.89,0.27220574]
[1740162759647,0.30919547,646.84,645.86,0.27220574]
[1740162759842,0.30919547,646.84,645.87,0.27220574]
[1740162760046,0.30919547,646.84,645.88,0.27220574]
[1740162760343,0.30919547,646.84,645.89,0.27220574]
[1740162760543,0.30919547,646.84,645.86,0.27220574]
[1740162760747,0.30919547,646.84,645.87,0.27220574]
[1740162760948,0.30919547,646.84,645.86,0.27220574]
[1740162761144,0.30919547,646.84,645.87,0.27220574]
[1740162761342,0.30919547,646.84,645.88,0.27220574]
[1740162761545,0.30919547,646.84,645.89,0.27220574]
[1740162761748,0.30919547,646.84,645.86,0.27220574]
[1740162761946,0.30919547,646.84,645.85,1.61518022]
[1740162762142,0.30919547,646.84,645.86,0.27256151]
[1740162762548,0.30919547,646.84,645.87,0.27256151]
[1740162762750,0.30919547,646.84,645.88,0.27256151]
[1740162763050,0.30919547,646.84,645.89,0.27256151]
[1740162763246,0.30919547,646.84,645.9,0.27256151]
[1740162763449,0.30919547,646.84,645.91,0.27256151]
[1740162763649,0.30919547,646.84,645.92,0.27256151]
[1740162763945,0.30919547,646.84,645.93,0.27256151]
[1740162764150,0.30919547,646.84,645.86,0.27256151]
[1740162764351,0.30919547,646.84,645.94,1.36113665]
[1740162764544,0.30919547,646.84,645.95,0.27256151]
[1740162764947,0.30919547,646.84,645.96,1.349]
[1740162765147,0.30919547,646.84,645.97,0.27256151]
[1740162766653,0.30919547,646.84,645.96,1.349]
[1740162766852,0.30919547,646.84,645.97,0.27253018]
[1740162768248,0.30919547,646.84,645.98,0.27277785]
[1740162768448,0.30919547,646.84,645.97,0.27277785]
[1740162768754,0.30919547,646.84,645.96,1.349]
[1740162768951,0.30919547,646.84,645.97,0.27283722]
[1740162769355,0.30919547,646.84,645.96,1.349]
[1740162770157,0.30919547,646.84,645.97,0.27290944]
[1740162772853,0.30919547,646.84,645.96,1.349]
[1740162773055,0.30919547,646.84,645.97,0.27290629]
[1740162774563,0.30919547,646.84,646.04,1.36113665]
[1740162774761,0.30919547,646.84,646.05,0.27289158]
[1740162775959,0.30919547,646.84,646.04,1.36113665]
[1740162776258,0.30919547,646.84,646.05,0.27279304]
[1740162776460,0.30919547,646.84,646.06,0.27279304]
[1740162776764,0.30919547,646.84,646.07,0.27279304]
[1740162777064,0.30919547,646.84,645.97,0.27279304]
[1740162777264,0.30919547,646.84,645.98,0.27279304]
[1740162777464,0.30919547,646.84,645.97,0.27279304]
[1740162777658,0.30919547,646.84,645.98,0.27279304]
[1740162777859,0.30919547,646.84,645.99,0.27279304]
[1740162778161,0.30919547,646.84,646.0,0.27279304]